fUSD/lending_fUSD_20250407
["ID","MTS","AMOUNT","RATE_DAILY","PERIOD"]
[357357191,1744015766009,-349.12,0.0003741,120]
[357357192,1744015766030,-2064.76,0.00037476,2]
[357357193,1744015766051,-150.0,0.000376,120]
[357357194,1744015766074,-300.0,0.00038,120]
[357357195,1744015766094,-8047.95089437,0.00038167,2]
[357357196,1744015766114,-248.71531821,0.00038196,2]
[357357197,1744015766135,-150.0,0.00038356,2]
[357357198,1744015766156,-154.55,0.00038443,2]
[357357199,1744015766176,-167.52835503,0.00039,120]
[357357200,1744015766196,-10300.83713073,0.00039,120]
[357357201,1744015766216,-505.34020602,0.00039456,5]
[357357202,1744015766236,-494.5423652,0.00039456,5]
[357357203,1744015766258,-257.91778498,0.00039565,2]
[357357204,1744015766279,-157.45,0.00039628,2]
[357357205,1744015766299,-157.45,0.00039628,2]
[357357206,1744015766320,-157.45,0.00039628,2]
[357357207,1744015766343,-157.45,0.00039628,2]
[357357208,1744015766364,-157.45,0.00039628,2]
[357357209,1744015766387,-157.45,0.00039628,2]
[357357210,1744015766406,-157.45,0.00039628,2]
[357357211,1744015766427,-157.45,0.00039628,2]
[357357212,1744015766450,-157.45,0.00039628,2]
[357357213,1744015766469,-157.45,0.00039628,2]
[357357214,1744015766488,-157.45,0.00039628,2]
[357357215,1744015766507,-157.45,0.00039628,2]
[357357216,1744015766527,-157.45623067,0.00039628,2]
[357357217,1744015766549,-150.0,0.00039726,2]
[357357218,1744015766569,-2064.76,0.0003974,2]
[357357219,1744015766594,-403.8,0.00039883,2]
[357357220,1744015766615,-500.0,0.00039999,31]
[357357221,1744015766636,-165.1122917,0.00039999,31]
[357357222,1744015766656,-500.0,0.0004,120]
[357357223,1744015766676,-161.44965543,0.0004,30]
[357357224,1744015766697,-500.0,0.0004,120]
[357357225,1744015766717,-153.93,0.00040068,2]
[357357226,1744015766738,-500.0,0.00040125,5]
[357357227,1744015766757,-301.64931533,0.00040125,5]
[357357228,1744015766777,-1000.0,0.00040513,2]
[357357229,1744015766798,-1275.71,0.00040652,120]
[357357230,1744015766818,-8047.95089437,0.00040922,15]
[357357231,1744015766841,-267.46074303,0.00040934,2]
[357357232,1744015766861,-167.0,0.00041,14]
[357357233,1744015766882,-9881.19611317,0.00041069,2]
[357357234,1744015766903,-521.96938969,0.00041073,5]
[357357235,1744015766923,-500.0,0.00041073,5]
[357357236,1744015766947,-151.37,0.00041086,2]
[357357237,1744015766968,-150.0,0.00041095,120]
[357357238,1744015766988,-150.0,0.00041096,10]
[357357239,1744015767007,-2000.0,0.00041096,13]
[357357240,1744015767027,-2000.0,0.00041096,13]
[357357241,1744015767047,-278.0,0.00041096,13]
[357357242,1744015767067,-505.0,0.00041096,30]
[357357243,1744015767089,-1956.0,0.00041096,13]
[357357244,1744015767110,-197.56475076,0.00041096,2]
[357357245,1744015767131,-200.0,0.00041096,20]
[357357246,1744015767153,-554.2976763,0.00041096,31]
[357357247,1744015767174,-554.2976763,0.00041096,31]
[357357248,1744015767194,-554.2976763,0.00041096,31]
[357357249,1744015767215,-554.2976763,0.00041096,31]
[357357250,1744015767235,-554.2976763,0.00041096,31]
[357357251,1744015767255,-554.2976763,0.00041096,31]
[357357252,1744015767275,-554.2976763,0.00041096,31]
[357357253,1744015767296,-554.2976763,0.00041096,31]
[357357254,1744015767317,-554.2976763,0.00041096,31]
[357357255,1744015767339,-554.2976763,0.00041096,31]
[357357256,1744015767360,-554.2976763,0.00041096,31]
[357357257,1744015767384,-554.2976763,0.00041096,31]
[357357258,1744015767404,-554.2976763,0.00041096,31]
[357357259,1744015767426,-554.2976763,0.00041096,31]
[357357260,1744015767447,-554.2976763,0.00041096,31]
[357357261,1744015767469,-554.2976763,0.00041096,31]
[357357262,1744015767490,-554.2976763,0.00041096,31]
[357357263,1744015767509,-2000.0,0.00041386,4]
[357357264,1744015767529,-500.0,0.000414,2]
[357357265,1744015767549,-546.40736201,0.00041407,3]
[357357266,1744015767726,-185.0,0.000415,10]
[357357267,1744015767747,-7971.741577,0.00041619,2]
[357357268,1744015767767,-350.0,0.00041644,10]
[357357269,1744015767787,-501.93,0.00041752,120]
[357357270,1744015767808,-349.12,0.00041888,120]
[357357271,1744015767829,-400.0,0.000419,15]
[357357272,1744015767851,-959.97,0.0004192,120]
[357357273,1744015767871,-156.22,0.00041946,2]
[357357274,1744015767892,-5000.0,0.00042,90]
[357357275,1744015767911,-500.0,0.00042,120]
[357357276,1744015767932,-2501.53,0.00042,120]
[357357277,1744015767953,-642.55,0.00042,120]
[357357278,1744015767974,-3749.97,0.00042,120]
[357357279,1744015767994,-469.4306023,0.00042,120]
[357357280,1744015768039,-2464.1193977,0.00042,120]
[357357281,1744015768061,-4063.68,0.00042,120]
[357357282,1744015768084,-248.42,0.00042,120]
[357357283,1744015768104,-261.48,0.00042,120]
[357357284,1744015768125,-689.39,0.00042,120]
[357357285,1744015768146,-251.91,0.00042,120]
[357357286,1744015768167,-500.0,0.00042,120]
[357357287,1744015768188,-2064.76,0.00042004,2]
[357357288,1744015768208,-4488.0,0.0004203,7]
[357357289,1744015768230,-277.35679052,0.00042303,2]
[357357290,1744015768251,-500.0,0.00042313,10]
[357357291,1744015768273,-219.75113403,0.00042465,120]
[357357292,1744015768293,-1093.49899292,0.000425,60]
[357357293,1744015768313,-889.55992615,0.00042732,17]
[357357294,1744015768336,-10476.1411853,0.00042806,3]
[357357295,1744015768357,-3575.15587531,0.00042806,3]
[357357296,1744015768383,-151.37,0.00042815,2]
[357357297,1744015768405,-151.37,0.00042815,2]
[357357298,1744015768432,-171.30032,0.000429,120]
[357357299,1744015768453,-800.0,0.000429,15]
[357357300,1744015768474,-3575.15587531,0.0004299,3]
[357357301,1744015768493,-842.84282695,0.00043,120]
[357357302,1744015768512,-190.0,0.00043,30]
[357357303,1744015768533,-7000.0,0.00043,100]
[357357304,1744015768554,-185.0,0.00043,30]
[357357305,1744015768575,-540.0,0.00043,120]
[357357306,1744015768600,-500.0,0.00043,100]
[357357307,1744015768620,-501.0,0.00043,120]
[357357308,1744015768640,-167.5809628,0.0004301,30]
[357357309,1744015768660,-3575.15587531,0.0004303,3]
[357357310,1744015768680,-1053.3746256,0.0004304,2]
[357357311,1744015768700,-1723.7509983,0.00043069,2]
[357357312,1744015768721,-10476.1411853,0.00043082,3]
[357357313,1744015768742,-3575.15587531,0.0004309,3]
[357357314,1744015768762,-450.71,0.00043098,7]
[357357315,1744015768782,-198.0,0.00043101,30]
[357357316,1744015768803,-3575.15587531,0.00043102,3]
[357357317,1744015768826,-10476.1411853,0.00043106,3]
[357357318,1744015768849,-7150.31175062,0.0004311,3]
[357357319,1744015768870,-774.1127352,0.00043116,4]
[357357320,1744015768892,-5000.0,0.00043116,120]
[357357321,1744015768913,-185.0,0.00043116,30]
[357357322,1744015768934,-290.60409168,0.00043116,30]
[357357323,1744015768954,-152.0,0.00043122,30]
[357357324,1744015768974,-1623.38292718,0.00043122,7]
[357357325,1744015768994,-200.0,0.00043122,7]
[357357326,1744015769014,-151.0,0.00043122,14]
[357357327,1744015769035,-249.141336,0.00043122,14]
[357357328,1744015769055,-276.472082,0.00043122,14]
[357357329,1744015769076,-151.0,0.00043122,14]
[357357330,1744015769097,-276.472082,0.00043122,14]
[357357331,1744015769118,-151.0,0.00043122,14]
[357357332,1744015769139,-151.0,0.00043122,14]
[357357333,1744015769160,-751.31189,0.00043122,73]
[357357334,1744015769181,-751.31189,0.00043122,73]
[357357335,1744015769202,-751.31189,0.00043122,73]
[357357336,1744015769223,-751.31189,0.00043122,73]
[357357337,1744015769244,-751.31189,0.00043122,73]
[357357338,1744015769265,-751.31189,0.00043122,73]
[357357339,1744015769286,-10476.1411853,0.00043141,3]
[357357340,1744015769308,-167.0,0.00043151,90]
[357357341,1744015769331,-3575.15587531,0.00043552,3]
[357357342,1744015769352,-200.0,0.00043553,7]
[357357343,1744015769376,-1060.2610365,0.00043562,120]
[357357344,1744015769398,-287.61899177,0.00043672,2]
[357357345,1744015769419,-8047.95089437,0.00043678,15]
[357357346,1744015769439,-3575.15587531,0.00043709,3]
[357357347,1744015769461,-10476.1411853,0.00043718,3]
[357357348,1744015769483,-3575.15587531,0.00043718,3]
[357357349,1744015769504,-10476.1411853,0.00043729,3]
[357357350,1744015769525,-10725.4676259,0.00043729,3]
[357357351,1744015769545,-164.09,0.00043748,2]
[357357352,1744015769565,-849.92,0.00043753,30]
[357357353,1744015769589,-156.83,0.00043793,2]
[357357354,1744015769610,-711.95557,0.00043888,30]
[357357355,1744015769632,-3575.15587531,0.0004389,3]
[357357356,1744015769652,-2904.7,0.000439,14]
[357357357,1744015769673,-200.0,0.00043989,7]
[357357358,1744015769694,-151.37,0.0004399,2]
[357357359,1744015769716,-500.0,0.00044,120]
[357357360,1744015769737,-500.0,0.00044,120]
[357357361,1744015769759,-10476.1411853,0.00044068,3]
[357357362,1744015769779,-711.95557,0.00044088,30]
[357357363,1744015769801,-3575.15587531,0.00044088,3]
[357357364,1744015769822,-1247.29047823,0.00044098,60]
[357357365,1744015769845,-1000.0,0.00044196,2]
[357357366,1744015769866,-154.55,0.00044239,2]
[357357367,1744015770083,-2000.0,0.00044258,4]
[357357368,1744015770106,-2064.76,0.00044268,2]
[357357369,1744015770127,-711.95557,0.00044288,30]
[357357370,1744015770148,-1275.71,0.00044348,120]
[357357371,1744015770169,-200.0,0.00044429,7]
[357357372,1744015770189,-3575.15587531,0.00044448,3]
[357357373,1744015770210,-711.95557,0.00044488,30]
[357357374,1744015770230,-153.93,0.00044521,2]
[357357375,1744015770250,-10476.1411853,0.00044537,3]
[357357376,1744015770271,-3575.15587531,0.00044537,3]
[357357377,1744015770291,-10476.1411853,0.00044546,3]
[357357378,1744015770313,-10725.4676259,0.00044546,3]
[357357379,1744015770336,-3575.15587531,0.00044549,3]
[357357380,1744015770356,-23200.79028456,0.00044556,30]
[357357381,1744015770380,-10476.1411853,0.00044578,3]
[357357382,1744015770401,-3575.15587531,0.00044578,3]
[357357383,1744015770421,-151.0,0.00044588,14]
[357357384,1744015770441,-151.0,0.00044588,14]
[357357385,1744015770465,-151.0,0.00044588,14]
[357357386,1744015770484,-158.17041,0.00044588,14]
[357357387,1744015770504,-151.0,0.00044588,14]
[357357388,1744015770525,-151.0,0.00044588,14]
[357357389,1744015770546,-151.0,0.00044588,14]
[357357390,1744015770567,-151.0,0.00044588,14]
[357357391,1744015770589,-163.809555,0.00044588,14]
[357357392,1744015770610,-3593.088332,0.00044588,14]
[357357393,1744015770630,-3593.088332,0.00044588,14]
[357357394,1744015770652,-442.299308,0.00044588,14]
[357357395,1744015770673,-442.299308,0.00044588,14]
[357357396,1744015770694,-711.95557,0.00044688,30]
[357357397,1744015770716,-179.39,0.00044764,2]
[357357398,1744015770737,-3575.15587531,0.0004487,3]
[357357399,1744015770758,-200.0,0.00044873,7]
[357357400,1744015770778,-277.98020646,0.0004488,7]
[357357401,1744015770799,-711.95557,0.00044888,30]
[357357402,1744015770819,-150.0,0.00044889,30]
[357357403,1744015770841,-327.03767039,0.000449,30]
[357357404,1744015770862,-151.37,0.0004499,2]
[357357405,1744015770884,-10476.1411853,0.0004499,3]
[357357406,1744015770910,-2388.67263332,0.0004499,3]
[357357407,1744015772839,-554.2976763,0.00041096,31]
[357357408,1744015772865,-1186.48324199,0.0004499,3]
[357357409,1744015772885,-500.0,0.00045,120]
[357357410,1744015772905,-2675.00421527,0.00045,120]
[357357411,1744015772926,-2710.0519268,0.00045,30]
[357357412,1744015772948,-151.0,0.00045,120]
[357357413,1744015772969,-151.0,0.00045,120]
[357357414,1744015772989,-1172.5543841,0.00045,2]
[357357415,1744015773009,-1000.0,0.00045,120]
[357357416,1744015773030,-167.12360171,0.00045026,30]
[357357417,1744015773052,-298.26089446,0.00045041,2]
[357357418,1744015773075,-711.95557,0.00045088,30]
[357357419,1744015773100,-3575.15587531,0.0004509,3]
[357357420,1744015773123,-2904.7,0.000451,14]
[357357421,1744015773146,-711.95557,0.00045288,30]
[357357422,1744015773170,-169.0,0.00045308,90]
[357357423,1744015773193,-3575.15587531,0.00045448,3]
[357357424,1744015773216,-711.95557,0.00045488,30]
[357357425,1744015773240,-10476.1411853,0.00045669,3]
[357357426,1744015773264,-1560.17971345,0.00045678,3]
[357357427,1744015774729,-192.52280599,0.00039999,31]
[357357428,1744015774756,-2014.97616186,0.00045678,3]
[357357429,1744015774777,-7489.7489459,0.00045679,120]
[357357430,1744015774799,-711.95557,0.00045688,30]
[357357431,1744015774820,-3575.15587531,0.0004588,3]
[357357432,1744015774842,-711.95557,0.00045888,30]
[357357433,1744015774864,-10476.1411853,0.0004589,3]
[357357434,1744015774885,-3575.15587531,0.0004589,3]
[357357435,1744015774906,-1601.63267033,0.000459,30]
[357357466,1744015831692,-250.0,0.00019,2]
[357357468,1744015831701,-300.0,0.00021,2]
[357357470,1744015831711,-350.0,0.00023,2]
[357357471,1744015831720,-400.0,0.00025,2]
[357357472,1744015831729,-450.0,0.00027,2]
[357357473,1744015831738,-500.0,0.00029,2]
[357357474,1744015831747,-500.0,0.00030973,5]
[357357475,1744015831757,-550.0,0.00031,2]
[357357476,1744015831766,-505.58130715,0.00036452,5]
[357357477,1744015831775,-500.0,0.00041096,31]
[357357478,1744015831784,-500.0,0.00041096,31]
[357357479,1744015831793,-500.0,0.00041096,31]
[357357480,1744015831803,-500.0,0.00041096,31]
[357357481,1744015831812,-500.0,0.00041096,31]
[357357482,1744015831821,-322.38978385,0.00041096,31]
[357357483,1744015831830,-500.0,0.00041096,31]
[357357484,1744015831839,-500.0,0.00041096,31]
[357357485,1744015831848,-500.0,0.00041096,31]
[357357486,1744015831858,-300.0,0.00041096,31]
[357357487,1744015831867,-8500.0,0.00042832,2]
[357357488,1744015831878,-151.72203352,0.00042832,2]
[357357489,1744015831891,-560.38839508,0.00042832,5]
[357357490,1744015831900,-1978.62616665,0.00042832,5]
[357357492,1744015831909,-1021.10012443,0.00042832,15]
[357357494,1744015831919,-13872.94581731,0.00042832,2]
[357357495,1744015831928,-300.0,0.00042832,15]
[357357496,1744015831938,-973.89107295,0.00042832,5]
[357357497,1744015831947,-759.85469906,0.00042832,15]
[357357498,1744015831958,-474.73543886,0.00042832,15]
[357357499,1744015831968,-590.3026737,0.00042832,5]
[357357500,1744015831977,-239.96188744,0.00042832,7]
[357357501,1744015831996,-318.31720902,0.00042832,7]
[357357502,1744015832008,-787.72537109,0.00042832,7]
[357357505,1744015832019,-367.35042861,0.00042832,7]
[357357507,1744015832030,-415.32026094,0.00042832,7]
[357357509,1744015832045,-1280.86813107,0.00042832,7]
[357357511,1744015832055,-367.79057687,0.00042832,5]
[357357514,1744015832069,-1131.01222148,0.00042832,5]
[357357516,1744015832079,-3178.67770872,0.00042832,5]
[357357517,1744015832089,-7667.24541652,0.00042832,5]
[357357518,1744015832100,-687.92150937,0.00042832,5]
[357357521,1744015832115,-7312.89619467,0.00042832,5]
[357357523,1744015832126,-2851.29765548,0.00042832,15]
[357357525,1744015832138,-7742.79284575,0.00042832,15]
[357357527,1744015832147,-1030.97083056,0.00042832,7]
[357357528,1744015832156,-462.33642357,0.00042832,7]
[357357529,1744015832165,-5044.05941063,0.00042832,7]
[357357530,1744015832175,-217.93417867,0.00042832,5]
[357357531,1744015832183,-45458.1448444,0.00042832,120]
[357357532,1744015832198,-4178.856,0.00042832,120]
[357357533,1744015832209,-2254.58509805,0.00042832,120]
[357357534,1744015832220,-1499.2,0.00042832,120]
[357357535,1744015832231,-12574.16700341,0.00042832,120]
[357357536,1744015832242,-3473.13022299,0.00042832,120]
[357357537,1744015832287,-13774.6537586,0.00042832,120]
[357357538,1744015832298,-1816.92473786,0.00042832,120]
[357357539,1744015832309,-4789.59220148,0.00042832,120]
[357357547,1744015837587,-152.72698199,0.00042831,31]
[357357548,1744015837596,-1453.06364713,0.00042832,120]
[357357549,1744015837611,-431.07708615,0.00042832,120]
[357357551,1744015837623,-1887.54303387,0.00042832,120]
[357357552,1744015837651,-15197.44409728,0.00042832,120]
[357357553,1744015837663,-389.35434101,0.00042832,120]
[357357554,1744015837674,-1198.40433631,0.00042832,120]
[357357555,1744015837686,-17603.31511839,0.00042832,120]
[357357556,1744015837695,-406.99424373,0.00042832,30]
[357357557,1744015837704,-370.26407598,0.00042832,30]
[357357558,1744015837713,-2083.58710636,0.00042832,30]
[357357559,1744015837723,-1576.39875919,0.00042832,7]
[357357560,1744015837732,-953.55274122,0.00042832,120]
[357357561,1744015837741,-381.79403915,0.00042832,120]
[357357562,1744015837751,-182.67179534,0.00042832,60]
[357357563,1744015837762,-1502.8491363,0.00042832,30]
[357357564,1744015837771,-886.80251625,0.00042832,30]
[357357565,1744015837781,-2687.34045382,0.00042832,7]
[357357566,1744015837790,-705.42553194,0.00042832,30]
[357357567,1744015837800,-1076.28752703,0.00042832,5]
[357357568,1744015837810,-419.19963265,0.00042832,120]
[357357569,1744015837821,-373.38606528,0.00042832,120]
[357357570,1744015837831,-1000.80331199,0.00042832,120]
[357357571,1744015837841,-698.56113847,0.00042832,120]
[357357572,1744015837851,-183.04308049,0.00042832,60]
[357357573,1744015837861,-938.3052927,0.00042832,38]
[357357574,1744015837899,-109.08423099,0.00042832,38]
[357357575,1744015837909,-204.2364251,0.00042832,30]
[357357576,1744015837919,-1285.15086699,0.00042832,120]
[357357577,1744015837928,-418.46461186,0.00042832,30]
[357357578,1744015837938,-773.97542446,0.00042832,30]
[357357579,1744015837948,-211.18170907,0.00042832,30]
[357357580,1744015837957,-267.50958743,0.00042832,30]
[357357581,1744015837966,-1250.2171441,0.00042832,2]
[357357582,1744015837978,-6596.03655,0.00042832,2]
[357357583,1744015837990,-1233.42756601,0.00042832,2]
[357357584,1744015838009,-890.54535279,0.00042832,2]
[357357585,1744015838020,-3441.7787304,0.00042832,2]
[357357587,1744015838029,-403.59296247,0.00042832,30]
[357357589,1744015838039,-904.06457333,0.00042832,120]
[357357591,1744015838047,-604.14010413,0.00042832,45]
[357357593,1744015838057,-407.51424968,0.00042832,120]
[357357595,1744015838067,-313.8011171,0.00042832,30]
[357357597,1744015838076,-1929.14895622,0.00042832,90]
[357357598,1744015838085,-171.37557114,0.00042832,120]
[357357600,1744015838095,-650.28901528,0.00042832,30]
[357357602,1744015838104,-208.24740922,0.00042832,30]
[357357604,1744015838114,-2.35913489,0.00042832,120]
[357357607,1744015838127,-957.63022261,0.00042832,120]
[357357609,1744015838136,-165.3254078,0.00042832,30]
[357357611,1744015838146,-10760.63542855,0.00042832,5]
[357357614,1744015838173,-9698.69008852,0.00042832,5]
[357357616,1744015838183,-1295.89861849,0.00042832,120]
[357357618,1744015838192,-3284.26676366,0.00042832,120]
[357357621,1744015838202,-222.93040128,0.00042832,120]
[357357623,1744015838214,-877.57346776,0.00042832,120]
[357357626,1744015838223,-3602.71023614,0.00042832,120]
[357357628,1744015838233,-800.0,0.00042832,5]
[357357630,1744015838243,-1295.10829439,0.00042832,120]
[357357632,1744015838252,-980.53542237,0.00042832,120]
[357357634,1744015838261,-641.80808408,0.00042832,120]
[357357636,1744015838271,-211.09059369,0.00042832,120]
[357357637,1744015838279,-262.82848617,0.00042832,30]
[357357639,1744015838289,-1221.77679157,0.00042832,120]
[357357641,1744015838298,-246.6641595,0.00042832,20]
[357357643,1744015838307,-508.10968222,0.00042832,120]
[357357645,1744015838316,-198.77816701,0.00042832,120]
[357357647,1744015838326,-428.25250114,0.00042832,30]
[357357649,1744015838335,-605.70049756,0.00042832,120]
[357357651,1744015838344,-1147.78409851,0.00042832,120]
[357357653,1744015838353,-246.70080036,0.00042832,30]
[357357655,1744015838363,-1000.0,0.00042832,30]
[357357657,1744015838372,-250.0,0.00042832,120]
[357357659,1744015838384,-12826.0,0.00042832,13]
[357357661,1744015838396,-340.26518273,0.00042832,120]
[357357663,1744015838406,-225.68268609,0.000429,19]
[357357664,1744015838415,-205.0,0.00043832,30]
[357357666,1744015838425,-2000.0,0.00044492,120]
[357357668,1744015838435,-500.0,0.00045,120]
[357357670,1744015838445,-225.68268607,0.00045444,22]
[357357672,1744015838454,-150.0,0.00045671,20]
[357357674,1744015838464,-8485.91608031,0.000459,30]
[357357676,1744015838474,-4000.0,0.000459,79]
[357357678,1744015838483,-3570.9562873,0.00045969,2]
[357357680,1744015838493,-500.0,0.00046,120]
[357357682,1744015838503,-500.0,0.00046,120]
[357357684,1744015838513,-195.51734401,0.00046027,2]
[357357686,1744015838523,-711.95557,0.00046088,30]
[357357688,1744015838533,-349.12,0.00046366,120]
[357357690,1744015838544,-1000.0,0.00046408,120]
[357357692,1744015838553,-309.29654756,0.0004641,2]
[357357694,1744015838563,-3597.88600245,0.00046412,15]
[357357696,1744015838579,-7540.58341033,0.00046412,15]
[357357699,1744015838590,-2171.28399999,0.00046412,15]
[357357701,1744015838602,-326.64376357,0.00046412,15]
[357357711,1744015838697,-545.92361944,0.00046412,15]
[357357713,1744015838708,-641.17075531,0.00046412,15]
[357357715,1744015838720,-936.04396637,0.00046412,15]
[357357717,1744015838731,-342.74717143,0.00046412,15]
[357357720,1744015838746,-9148.2613114,0.00046412,15]
[357357722,1744015838755,-3575.15587531,0.00046423,3]
[357357724,1744015838769,-10476.1411853,0.00046449,3]
[357357726,1744015838779,-3575.15587531,0.00046449,3]
[357357728,1744015838788,-3575.15587531,0.00046459,3]
[357357730,1744015838797,-10476.1411853,0.00046469,3]
[357357732,1744015838807,-7150.31175062,0.00046469,3]
[357357734,1744015838815,-3575.15587531,0.00046511,3]
[357357736,1744015838825,-10476.1411853,0.00046522,3]
[357357737,1744015838834,-2064.76,0.00046531,2]
[357357739,1744015838843,-858.90747977,0.00046552,10]
[357357741,1744015838853,-3575.15587531,0.00046565,3]
[357357743,1744015838862,-2000.0,0.00046575,120]
[357357745,1744015838871,-2000.0,0.00046575,120]
[357357747,1744015838883,-2000.0,0.00046575,120]
[357357749,1744015838893,-2000.0,0.00046575,120]
[357357751,1744015838902,-1578.17386149,0.00046575,120]
[357357753,1744015838912,-550.69936439,0.000468,120]
[357357755,1744015838922,-166.66,0.00046872,2]
[357357757,1744015838931,-3575.15587531,0.00046944,3]
[357357759,1744015838940,-10476.1411853,0.0004697,3]
[357357761,1744015838950,-3575.15587531,0.0004698,3]
[357357763,1744015838959,-10476.1411853,0.0004699,3]
[357357764,1744015838969,-7150.31175062,0.0004699,3]
[357357765,1744015838979,-21150.0,0.00047,120]
[357357766,1744015838988,-500.0,0.00047,120]
[357357767,1744015838997,-3575.15587531,0.00047014,3]
[357357768,1744015839007,-889.55992611,0.00047024,22]
[357357769,1744015839018,-2000.0,0.000471,2]
[357357770,1744015839027,-959.59863609,0.00047129,4]
[357357771,1744015839037,-959.97,0.0004716,120]
[357357772,1744015839047,-2904.7,0.000473,14]
[357357773,1744015839057,-24616.98915276,0.00047355,15]
[357357774,1744015839070,-633.55484753,0.00047355,15]
[357357775,1744015839080,-3575.15587531,0.00047468,3]
[357357776,1744015839090,-711.95557,0.00047488,30]
[357357777,1744015839100,-711.95557,0.00047688,30]
[357357778,1744015839109,-320.74051982,0.00047779,2]
[357357779,1744015839118,-1000.0,0.00047792,10]
[357357780,1744015839131,-10476.1411853,0.00047878,4]
[357357781,1744015839140,-711.95557,0.00047888,30]
[357357782,1744015839150,-225.68268607,0.00047988,26]
[357357783,1744015839159,-1601.15173169,0.00048,2]
[357357784,1744015839169,-500.0,0.00048,120]
[357357785,1744015839178,-300.0,0.00048,120]
[357357786,1744015839187,-500.0,0.00048,120]
[357357787,1744015839196,-711.95557,0.00048088,30]
[357357788,1744015839205,-711.95557,0.00048288,30]
[357357789,1744015839214,-25250.54400029,0.00048298,15]
[357357790,1744015839223,-2854.88189356,0.00048322,4]
[357357791,1744015839249,-397.1500002,0.00048322,4]
[357357792,1744015839263,-323.12398155,0.00048322,4]
[357357793,1744015839272,-166.66,0.00048419,2]
[357357794,1744015839281,-498.30676435,0.00048488,30]
[357357795,1744015839294,-213.64880565,0.00048488,30]
[357357796,1744015839303,-500.0,0.00048493,120]
[357357797,1744015839314,-500.0,0.00048499,120]
[357357798,1744015839323,-465.57860419,0.00048499,31]
[357357799,1744015839332,-500.0,0.00048499,120]
[357357800,1744015839341,-500.0,0.00048499,120]
[357357801,1744015839350,-500.0,0.00048499,120]
[357357803,1744015839360,-269.81170373,0.00048499,120]
[357357820,1744015839974,-230.18829627,0.00048499,120]
[357357821,1744015839985,-249.00590187,0.00048499,120]
[357357822,1744015839995,-500.0,0.00048499,120]
[357357823,1744015840005,-500.0,0.00048499,120]
[357357824,1744015840014,-500.0,0.00048499,120]
[357357825,1744015840024,-463.78561326,0.00048499,120]
[357357826,1744015840036,-36.21438674,0.00048499,120]
[357357827,1744015840046,-500.0,0.00048499,120]
[357357828,1744015840055,-500.0,0.00048499,120]
[357357829,1744015840065,-500.0,0.00048499,120]
[357357830,1744015840074,-143.19117633,0.000485,14]
[357357831,1744015840086,-356.80882367,0.000485,14]
[357357832,1744015840095,-200.0,0.000485,30]
[357357833,1744015840104,-5420.61455965,0.0004856,4]
[357357834,1744015840118,-571.78555718,0.0004856,4]
[357357835,1744015840182,-1651.34939621,0.0004856,4]
[357357836,1744015840247,-891.72127326,0.0004856,4]
[357357837,1744015840263,-802.5534407,0.0004856,4]
[357357838,1744015840275,-1138.1169583,0.0004856,4]
[357357839,1744015840285,-1012.00061063,0.0004856,4]
[357357840,1744015840305,-947.66428876,0.0004856,4]
[357357841,1744015840316,-1615.49097592,0.0004856,4]
[357357842,1744015840326,-146.06503264,0.0004857,4]
[357357844,1744015840338,-3429.09084267,0.0004857,4]
[357357846,1744015840347,-10014.70915768,0.0004859,4]
[357357848,1744015840359,-476.17354584,0.0004859,4]
[357357870,1744015840477,-825.61899063,0.0004859,4]
[357357873,1744015840490,-3868.2,0.0004859,4]
[357357877,1744015840595,-0.00807253,0.0004859,4]
[357357878,1744015840606,-1944.46075845,0.0004859,4]
[357357918,1744015842677,-318.68600886,0.00046452,18]
[357357923,1744015842947,-1655.02690864,0.00046452,18]
[357357924,1744015842957,-3823.11184547,0.0004859,4]
[357357925,1744015842967,-2704.33665228,0.0004859,4]
[357357926,1744015842989,-475.71237002,0.0004859,4]
[357357927,1744015843000,-4058.2309764,0.0004859,4]
[357357928,1744015843012,-1660.13618158,0.0004859,4]